Cogmind - Beta 16 --- EXPLORER MODE // 2026.01.12 @ 11:59:24 Player: K.K.Y. Result: Destroyed by AG-90434 with Assembled Focal Cannon Performance ------------- Evolutions (4) 2000 Regions Visited (10) 2000 Robots Destroyed (173) 865 Value Destroyed (6790) 6790 Prototype IDs (36) 720 Alien Tech Used (0) 0 Bonus (3729) 3729 TOTAL SCORE: 16104 Bonus ------- Follower Combat Kills 322 Delivered SUBCON Basin 2000 Met Imprinter 300 Was Imprinted 300 Destroyed Z-Imprinter 1000 Friendly Fire -193 Cogmind --------- Core Integrity 0/850 Matter 300/300 Energy 100/100 System Corruption 0% Temperature Cool (12) Movement Core (1150) Ox22 Location -6/Deep Caves Parts ------- > --- POWER (2) -------- Zionite Light DM Reactor Zionite Light DM Reactor > --- PROPULSION (4) --- (None) > --- UTILITY (8) ------ Experimental Heat Sink Experimental Heat Sink High-capacity Storage Unit Layered Medium Armor Plating Improved System Shield Tech Extrapolator Amulet of Y3-NDR > --- WEAPON (2) ------- (None) > --- INVENTORY (20) --- Experimental Heat Sink Improved Trap Scanner Machine Analyzer Surveybot 24 Scanner Surveybot 24 Chip Improved Phase Shifter Cloak of Protection Zionite Weapon Casing Zionite Light Carapace Advanced Hacking Suite Authchip [Propulsion] Authchip [Propulsion] Authchip [Weapon] Improved Corruption Screen Improved System Restoration Module Improved System Restoration Module Improved Remote Datajack Multitool Power Sword Peak State ------------ > --- POWER ------------ Zionite Light DM Reactor Zionite Light DM Reactor > --- PROPULSION ------- Zionite Glidesys I Zionite Glidesys I Zionite Glidesys II Zionite Glidesys II > --- UTILITY ---------- Experimental Heat Sink Experimental Heat Sink High-capacity Storage Unit Zionite Metafield Generator IFF Parser Graphene Brace Improved System Shield Amulet of Y3-NDR > --- WEAPON ----------- Zionite Laser-M Cooled Plasma Cannon > --- INVENTORY -------- Improved Trap Scanner Machine Analyzer Improved Sensor Array Surveybot 24 Scanner Surveybot 24 Chip Improved Phase Shifter Layered Medium Armor Plating Advanced Hacking Suite Makeshift System Shield Authchip [Propulsion] Authchip [Propulsion] Authchip [Weapon] Tech Extrapolator Improved Corruption Screen Improved System Restoration Module Improved System Restoration Module Precision Grenade Launcher Improved Remote Datajack Multitool Power Sword [Rating: 117] Favorites ----------- Power Cold Fusion Reactor Engine Light Angular Momentum Engine Power Core Light Nuclear Core Reactor Cold Fusion Reactor Propulsion Improved Medium Treads Treads Improved Medium Treads Leg Zionite Composite Leg I Wheel Overtuned Scrapsphere Hover Unit Zionite Glidesys I Flight Unit Improved VTOL Module Utility Advanced Heat Sink Device Advanced Heat Sink Storage High-capacity Storage Unit Processor Tech Extrapolator Hackware Improved System Shield Protection Layered Medium Armor Plating Weapon Cooled Plasma Cannon Energy Gun Zionite Phaser-S Energy Cannon Cooled Plasma Cannon Ballistic Cannon Battle Cannon Launcher Precision Grenade Launcher Special Weapon Mining Laser Impact Weapon Makeshift Hammer Build | -11 -10 -10 -10 -8 -8 -6 -6 -6 -6 -6 ------- Run | Yrd Mat Min Sub Rec Scr Fac Low Low Zio Dee Slots Evolved 9 | . 1 . . . . 8 . . . . Power 1 | . . . . . . 1 . . . . Propulsion 2 | . . . . . . 2 . . . . Utility 6 | . 1 . . . . 5 . . . . Weapon . | . . . . . . . . . . . Parts Attached 162 | 8 9 2 12 3 6 62 5 4 5 46 Power 25 | 1 1 1 1 . 1 11 . . . 9 Engine 5 | 1 . 1 . . 1 2 . . . . Core 6 | . 1 . 1 . . 4 . . . . Reactor 14 | . . . . . . 5 . . . 9 Propulsion 33 | 2 1 . 1 3 1 10 1 1 2 11 Treads 18 | 2 1 . 1 2 . 9 1 1 1 . Leg 1 | . . . . . . . . . . 1 Wheel 2 | . . . . 1 1 . . . . . Hover 11 | . . . . . . . . . 1 10 Flight 1 | . . . . . . 1 . . . . Utility 76 | 3 4 . 7 . 1 33 4 3 1 20 Device 54 | . 2 . 4 . . 26 4 3 1 14 Storage 3 | 1 1 . . . . . . . . 1 Processor 2 | . . . . . 1 . . . . 1 Hackware 3 | . . . . . . 2 . . . 1 Protection 14 | 2 1 . 3 . . 5 . . . 3 Artifact . | . . . . . . . . . . . Weapon 28 | 2 3 1 3 . 3 8 . . 2 6 Energy Gun 12 | 2 . . . . 3 1 . . . 6 Energy Cannon 11 | . 2 . 1 . . 6 . . 2 . Ballistic Gun . | . . . . . . . . . . . Ballistic Cannon 1 | . . . 1 . . . . . . . Launcher 1 | . . . . . . 1 . . . . Special Weapon 2 | . 1 1 . . . . . . . . Impact Weapon 1 | . . . 1 . . . . . . . Slashing Weapon . | . . . . . . . . . . . Piercing Weapon . | . . . . . . . . . . . Special Melee Weapon . | . . . . . . . . . . . Unidentified Prototypes 20 | . . . 1 . . 5 . 1 . 13 Parts Lost 34 | . . . 5 . . 6 3 1 . 19 Power 1 | . . . 1 . . . . . . . Propulsion 16 | . . . 1 . . 1 1 1 . 12 Utility 9 | . . . 1 . . 4 2 . . 2 Weapon 8 | . . . 2 . . 1 . . . 5 Highest Loss Streak 6 | . . . 2 . . 2 2 1 . 6 To Critical Strikes . | . . . . . . . . . . . Average Backups 16 | 2 8 10 9 14 19 19 20 20 20 19 Power . | . . . . . . . . . . . Propulsion . | . . . . . . . . . . . Utility 11 | 1 5 8 6 7 11 12 15 15 15 15 Weapon 3 | . 1 2 1 5 6 4 3 3 2 1 Tool/Special . | . . . . . . . . . . . Unused Backups 45 | . 1 . 2 2 5 13 . 1 . 21 Power 3 | . . . . 1 . 2 . . . . Propulsion 1 | . 1 . . . . . . . . . Utility 26 | . . . 2 . 1 5 . 1 . 17 Weapon 10 | . . . . 1 4 3 . . . 2 Tool/Special 5 | . . . . . . 3 . . . 2 Average Slot Usage (%) 92 | . 97 100 85 88 98 93 94 91 95 96 Engine 2 | . 3 10 7 . 6 1 . . . . Core 2 | . 8 1 . 12 5 2 . . . . Reactor 6 | . . . . . . 8 12 12 12 11 Treads 16 | . 24 25 14 13 24 21 19 16 20 2 Hover 3 | . . . . . . . . . . 19 Device 23 | . 7 12 14 25 23 21 34 37 37 29 Storage 8 | . 9 12 12 12 12 6 6 6 6 6 Hackware 4 | . . . . . . 9 6 6 6 6 Protection 5 | . 19 12 9 . . 9 2 . . 3 Energy Gun 2 | . 8 . . . 5 . . . . 9 Energy Cannon 10 | . 14 24 21 . . 10 12 12 11 2 Ballistic Cannon 1 | . . . . 12 6 . . . . . Impact Weapon 2 | . . . 1 12 12 1 . . . . Peak Build Rating 117 | 7 11 13 35 35 30 88 90 88 90 117 Average Rating 58 | 5 9 12 14 22 27 77 85 85 86 107 On Entrance 42 | . 7 11 13 35 26 30 85 85 85 90 Avg Prop Armor Cover (%) 6 | . . . . 15 19 4 . . . 7 Naked Turns . | . . . . . . . . . . . Heaviest Build 105 | 14 55 29 53 53 58 105 96 86 86 86 Greatest Support 120 | 40 40 40 40 42 42 120 118 88 110 110 Greatest Overweight (x) 23 | 3 1 . 2 17 17 1 1 1 1 23 Average Overweight (x) . | . . . . 2 1 . . . . 1 Largest Inventory Capacity 20 | 10 20 10 20 20 20 20 20 20 20 20 Average Capacity 17 | 5 9 10 10 20 20 20 20 20 20 20 Most Carried 20 | 7 10 10 20 20 20 20 20 20 20 20 Average Carried 16 | 2 8 10 10 16 19 19 20 19 19 19 Final Capacity 20 | 5 10 10 20 20 20 20 20 20 20 20 Final Carried 20 | 2 10 10 20 20 20 20 20 20 20 19 Class Distribution -------------------- 74% | Hacker-Mutant 13% | Scavenger-Mutant 11% | Commander-Mutant Dominant Class ---------------- Hacker-Mutant | -10/Materials Hacker-Mutant | -10/Mines Hacker-Mutant | -10/Subcaves Commander-Mutant | -8/Recycling Commander-Mutant | -8/Scraptown Hacker-Mutant | -6/Factory Hacker-Mutant | -6/Lower Caves Hacker-Mutant | -6/Lower Caves Hacker-Mutant | -6/Zion Scavenger-Mutant | -6/Deep Caves Resources | -11 -10 -10 -10 -8 -8 -6 -6 -6 -6 -6 ----------- Run | Yrd Mat Min Sub Rec Scr Fac Low Low Zio Dee Matter Collected 2480 | 280 140 10 245 60 50 940 40 40 60 615 Remotely . | . . . . . . . . . . . Salvage Created 8674 | 138 479 309 526 127 . 5161 676 128 . 1130 Parts 374 | 13 30 16 27 4 . 214 15 3 . 52 Haulers Intercepted 7 | . 2 . . . . 5 . . . . Recyclers Shooed 7 | 1 . . . . . 6 . . . . Parts Field Recycled . | . . . . . . . . . . . Retrieved Matter . | . . . . . . . . . . . Parts Self-Destructed . | . . . . . . . . . . . Prevented . | . . . . . . . . . . . Parts Restored . | . . . . . . . . . . . Kills | -11 -10 -10 -10 -8 -8 -6 -6 -6 -6 -6 ------- Run | Yrd Mat Min Sub Rec Scr Fac Low Low Zio Dee Combat Hostiles Destroyed 128 | . 10 . 14 3 . 75 12 2 . 12 Melee 1 | . . . . 1 . . . . . . Guns 7 | . 4 . . . . . . . . 3 Cannons 101 | . 6 . 13 2 . 60 10 2 . 8 Classes Destroyed 21 | 2 6 1 3 1 . 6 1 . . 1 Worker 5 | . . 2 . . . 3 . . . . Builder 6 | . 1 3 . . . 2 . . . . Tunneler 4 | 4 . . . . . . . . . . Hauler 7 | . 2 . . . . 5 . . . . Recycler 5 | 1 . 2 . . . 2 . . . . Mechanic 2 | . 1 . . . . 1 . . . . Operator 2 | . . . . . . 2 . . . . Turret 2 | . . . 2 . . . . . . . Watcher 11 | . 3 . . . . 8 . . . . Swarmer 23 | . 6 . 4 . . 11 2 . . . Grunt 32 | . 4 . . . . 22 4 2 . . Brawler 1 | . . . . . . 1 . . . . Duelist 2 | . . . . . . . 2 . . . Protector 1 | . . . . . . 1 . . . . Sentry 14 | . . . . 3 . 10 1 . . . Hunter 10 | . . . . . . 8 2 . . . Programmer 22 | . . . . . . 21 1 . . . Behemoth 1 | . . . . . . 1 . . . . Artisan 1 | . . . 1 . . . . . . . Subdweller 10 | . . . 10 . . . . . . . Z-Light 11 | . . . . . . . . . . 11 Thug 1 | . . 1 . . . . . . . . Best Kill Streak 7 | 4 2 4 6 1 . 6 7 2 . 5 Combat Bots Only 7 | . 2 . 4 1 . 5 7 2 . 5 Max Kills in Single Turn 2 | 1 1 1 2 1 . 2 1 1 . 1 Gunslinging . | . . . . . . . . . . . Exploded . | . . . . . . . . . . . Melee 1 | . . . . 1 . . . . . . Uniques/NPCs Destroyed 1 | . . . . . . . . . . 1 Z-Imprinter (-6/Deep Caves) Combat | -11 -10 -10 -10 -8 -8 -6 -6 -6 -6 -6 -------- Run | Yrd Mat Min Sub Rec Scr Fac Low Low Zio Dee Hostile Shots Fired 1117 | . 45 . 122 21 . 674 87 19 . 149 Missed 357 | . 10 . 42 5 . 242 14 4 . 40 Hits 760 | . 35 . 80 16 . 432 73 15 . 109 Melee 7 | . . . . . . . 7 . . . Projectile 753 | . 35 . 80 16 . 432 66 15 . 109 AOE 2 | . . . . . . 2 . . . . Critical Strikes 17 | . . . 2 1 . 9 5 . . . Actively Blocked 6 | . . . . . . 1 5 . . . Part Disruptions 2 | . . . . . . 2 . . . . Damage Taken 8316 | . 238 . 912 151 . 3526 880 176 . 2433 Core 1092 | . 27 . 194 18 . 295 69 51 . 438 Absorbed by Shields 488 | . . . . 1 . 347 140 . . . Ignored by Resistances 5408 | . 159 . 491 92 . 2578 601 103 . 1384 Regen/Repaired (Parts) 647 | . . . . . . 647 . . . . Core Remaining (%) 52 | 100 . . . . 4 . . . . . Volleys Fired 556 | 8 46 15 64 6 . 295 26 12 1 83 Largest 2 | 2 2 2 2 1 . 2 2 2 2 2 Hottest 160 | 90 140 160 160 33 . 70 70 70 70 120 Shots Fired 948 | 16 71 30 128 6 . 468 52 24 2 151 Gun 142 | 16 36 . . . . . . . . 90 Cannon 788 | . 33 27 115 6 . 468 52 24 2 61 Launcher . | . . . . . . . . . . . Special 18 | . 2 3 13 . . . . . . . Kinetic 6 | . . . . 6 . . . . . . Thermal 855 | 16 71 30 128 . . 468 52 24 2 64 Explosive . | . . . . . . . . . . . Electromagnetic . | . . . . . . . . . . . Phasic 87 | . . . . . . . . . . 87 Robot Hit Streak 37 | 14 37 10 24 7 . 36 30 10 . 15 Robot Miss Streak 3 | . 1 1 2 . . 2 1 1 . 3 Penetration Max . | . . . . . . . . . . . Secondary Targets 1 | . 1 . . . . . . . . . Max Gunslinging Chain 1 | . 1 . . . . . . . . . Shots Hit Robots 686 | 14 55 16 90 11 . 363 44 19 . 74 Core Hits 263 | 6 21 10 26 4 . 145 15 4 . 32 Critical Kills 11 | . . . 1 . . 9 . . . 1 Critical Parts Destroyed 1 | . . . . 1 . . . . . . Critical Strikes 18 | 1 1 . 1 1 . 9 . . . 5 Burn 2 | 1 1 . . . . . . . . . Meltdown 11 | . . . 1 . . 9 . . . 1 Smash 1 | . . . . 1 . . . . . . Intensify 4 | . . . . . . . . . . 4 Melee Attacks 6 | . . . 1 5 . . . . . . Impact 6 | . . . 1 5 . . . . . . Slashing . | . . . . . . . . . . . Piercing . | . . . . . . . . . . . Sneak Attacks 1 | . . . . 1 . . . . . . Combat Hostiles . | . . . . . . . . . . . Follow-up Attacks . | . . . . . . . . . . . Damage Inflicted 20298 | 169 808 376 1503 334 . 12330 1489 642 . 2647 Guns 1528 | 169 333 . . . . . . . . 1026 Cannons 18385 | . 475 315 1431 127 . 12285 1489 642 . 1621 Explosions 45 | . . . . . . 45 . . . . Melee 207 | . . . . 207 . . . . . . Ramming 61 | . . 61 . . . . . . . . Kinetic 127 | . . . . 127 . . . . . . Thermal 18901 | 169 808 315 1503 . . 12285 1489 642 . 1690 Explosive . | . . . . . . . . . . . Electromagnetic 45 | . . . . . . 45 . . . . Impact 207 | . . . . 207 . . . . . . Slashing . | . . . . . . . . . . . Piercing . | . . . . . . . . . . . Phasic 957 | . . . . . . . . . . 957 Highest Corruption 5 | . . . . . . 5 . . . . Average Corruption 3 | . . . . . . 3 . . . . Corruption Purged 7 | . . . . . . 7 . . . . Corruption Blocked . | . . . . . . . . . . . Effects 71 | . . . . . . 71 . . . . Message Errors 17 | . . . . . . 17 . . . . Matter Fused 15 | . . . . . . 15 . . . . Heat Flow Errors 10 | . . . . . . 10 . . . . Energy Discharges 8 | . . . . . . 8 . . . . Parts Rejected 1 | . . . . . . 1 . . . . Parts Fused 1 | . . . . . . 1 . . . . Data Loss (minor) 6 | . . . . . . 6 . . . . Data Loss (major) 4 | . . . . . . 4 . . . . Misfires 4 | . . . . . . 4 . . . . Alerts 4 | . . . . . . 4 . . . . Weapon Failures 1 | . . . . . . 1 . . . . Overload Shots . | . . . . . . . . . . . Overflow Damage 563 | . . . . 35 . 371 63 11 . 83 Projectiles 511 | . . . . . . 354 63 11 . 83 Explosions 17 | . . . . . . 17 . . . . Melee 35 | . . . . 35 . . . . . . Knockbacks . | . . . . . . . . . . . Impact . | . . . . . . . . . . . Kinetic . | . . . . . . . . . . . Secondary . | . . . . . . . . . . . Self-Inflicted Damage 247 | . . . . . . 247 . . . . Shots 7 | . . . . . . 7 . . . . Rammed 8 | . . 8 . . . . . . . . Targets Rammed 8 | . . 8 . . . . . . . . Kicked . | . . . . . . . . . . . Crushed . | . . . . . . . . . . . Highest Temperature 455 | 192 455 90 174 7 . 251 . . . 330 Average Temperature 118 | 75 163 34 41 6 . 92 . . . 166 Received Heat Transfer 2968 | . 117 . 419 63 . 1154 216 117 . 882 Effects 5 | . 5 . . . . . . . . . Shutdowns 1 | . 1 . . . . . . . . . Interference 3 | . 3 . . . . . . . . . Short Circuit 1 | . 1 . . . . . . . . . Siege Activations . | . . . . . . . . . . . Martial Activations . | . . . . . . . . . . . Shielding Activations . | . . . . . . . . . . . Robots Disrupted . | . . . . . . . . . . . Combat Hostiles . | . . . . . . . . . . . Robots Corrupted . | . . . . . . . . . . . Combat Hostiles . | . . . . . . . . . . . Parts Fried . | . . . . . . . . . . . Impact Corruptions 1 | . . . . 1 . . . . . . Robots Melted 20 | . . . 1 . . 16 2 . . 1 Combat Hostiles 19 | . . . 1 . . 15 2 . . 1 Parts Melted 111 | 1 1 . 6 . . 80 11 . . 12 Heat Transferred 29779 | 520 1953 666 3184 . . 18126 2250 1000 . 2080 Parts Sabotaged . | . . . . . . . . . . . Parts Stolen . | . . . . . . . . . . . Parts Stripped . | . . . . . . . . . . . Power Chain Reactions 1 | . . . . . . 1 . . . . Alert | -11 -10 -10 -10 -8 -8 -6 -6 -6 -6 -6 ------- Run | Yrd Mat Min Sub Rec Scr Fac Low Low Zio Dee Maximum Alert Level . | . . . . . . . . . . . Low Security (%) 100 | 100 100 100 . 100 . 100 . . . . Level 1 . | . . . . . . . . . . . Level 2 . | . . . . . . . . . . . Level 3 . | . . . . . . . . . . . Level 4 . | . . . . . . . . . . . Level 5 . | . . . . . . . . . . . High Security . | . . . . . . . . . . . Max Security . | . . . . . . . . . . . Peak Influence 90 | 10 61 10 . 22 . 90 . . . . Initial . | . . . . . . . . . . . Average 7 | 1 9 . . . . 11 . . . . Influence Increases 3715 | 25 323 37 195 119 . 2519 265 232 . . Destroy 0b10 Robot/C 2320 | . 200 . 120 100 . 1480 240 180 . . Destroy 0b10 Robot/NC 220 | 25 35 35 . 5 . 120 . . . . Destroy Leader 596 | . 50 . . . . 506 10 30 . . Allied During Kill 26 | . . . . 4 . . . 22 . . Trap Triggered on 0b10 20 | . . . . . . 20 . . . . Successful Hack 133 | . 2 . . 10 . 121 . . . . Disable Machine 84 | . 4 . . . . 80 . . . . Destroy Structure 136 | . 2 2 . . . 132 . . . . Lose Combat Pursuer 180 | . 30 . 75 . . 60 15 . . . Influence Decreases 3715 | 25 323 37 195 119 . 2504 280 232 . . Entered New Map 8 | . . . . . . . 8 . . . Time Decay 3560 | 25 323 37 195 119 . 2392 237 232 . . Lost Part 69 | . . . . . . 44 25 . . . Lost Ally 15 | . . . . . . 5 10 . . . Purge Threat 63 | . . . . . . 63 . . . . Squads Dispatched 30 | . . . . . . 30 . . . . Investigation 10 | . . . . . . 10 . . . . Extermination 16 | . . . . . . 16 . . . . Reinforcement 3 | . . . . . . 3 . . . . Assault 1 | . . . . . . 1 . . . . Garrison . | . . . . . . . . . . . Intercept . | . . . . . . . . . . . Searches Triggered . | . . . . . . . . . . . Construction Impeded . | . . . . . . . . . . . Haulers Reinforced 2 | . . . . . . 2 . . . . Active Scanning Responses . | . . . . . . . . . . . Cargo Convoy Interrupts . | . . . . . . . . . . . Stealth | -11 -10 -10 -10 -8 -8 -6 -6 -6 -6 -6 --------- Run | Yrd Mat Min Sub Rec Scr Fac Low Low Zio Dee Distress Signals 2 | . . . . . . 2 . . . . Communications Jammed . | . . . . . . . . . . . Distress Signals . | . . . . . . . . . . . Times Spotted 173 | . 19 . 18 4 . 95 12 8 . 17 Peak Tracking Total 7 | . 3 . 4 1 . 5 7 2 . 5 Tactical Retreats 10 | . 2 . 2 . . 4 1 . . 1 Traps | -11 -10 -10 -10 -8 -8 -6 -6 -6 -6 -6 ------- Run | Yrd Mat Min Sub Rec Scr Fac Low Low Zio Dee Traps Triggered 6 | . 2 . 2 . . 2 . . . . Indirectly . | . . . . . . . . . . . Trap Hack Attempts . | . . . . . . . . . . . Triggered . | . . . . . . . . . . . Disarmed 7 | . . . . . . 7 . . . . Reprogrammed 6 | . . . . . . 6 . . . . Reused 2 | . . . . . . 2 . . . . Traps Extracted . | . . . . . . . . . . . Installed . | . . . . . . . . . . . Triggered 2 | . . . . . . 2 . . . . Machines | -11 -10 -10 -10 -8 -8 -6 -6 -6 -6 -6 ---------- Run | Yrd Mat Min Sub Rec Scr Fac Low Low Zio Dee Machines Disabled 22 | . 1 . 1 . . 20 . . . . Max in Single Turn 4 | . 1 . 1 . . 4 . . . . Garrison Access 3 | . . . . . . 3 . . . . Machines Repaired . | . . . . . . . . . . . Machines Dismantled . | . . . . . . . . . . . Machines Sabotaged . | . . . . . . . . . . . Overloaded Fab Kills . | . . . . . . . . . . . Hacking | -11 -10 -10 -10 -8 -8 -6 -6 -6 -6 -6 --------- Run | Yrd Mat Min Sub Rec Scr Fac Low Low Zio Dee Machines Accessed 52 | . 8 . 4 10 . 29 . 1 . . Terminals 24 | . 6 . . 5 . 13 . . . . Fabricators 4 | . . . . . . 4 . . . . Repair Stations 3 | . . . . . . 3 . . . . Recycling Units 11 | . 2 . . 5 . 4 . . . . Scanalyzers 3 | . . . . . . 3 . . . . Garrison Access 2 | . . . . . . 2 . . . . Total Hacks 158 | . 8 . 7 27 . 115 . 1 . . Successful 107 | . 8 . 7 17 . 74 . 1 . . Failed 51 | . . . . 10 . 41 . . . . Catastrophic 4 | . . . . . . 4 . . . . Database Lockouts . | . . . . . . . . . . . Manual 41 | . 6 . . 11 . 20 . . 4 . Terminals 79 | . 6 . . 13 . 60 . . . . Fabricators 16 | . . . . . . 16 . . . . Repair Stations 10 | . . . . . . 10 . . . . Recycling Units 24 | . 2 . . 14 . 8 . . . . Scanalyzers 19 | . . . . . . 19 . . . . Garrison Access 2 | . . . . . . 2 . . . . Terminal Hacks 35 | . . . 7 4 . 23 . 1 . . Record 9 | . . . 4 . . 5 . . . . Part Schematic 8 | . . . . 2 . 6 . . . . Robot Schematic 1 | . . . . . . 1 . . . . Prototype ID Bank 2 | . . . . 2 . . . . . . Open Door 2 | . . . 1 . . . . 1 . . Emergency Access Points 1 | . . . . . . 1 . . . . Machine Index 1 | . . . . . . 1 . . . . Unreport Threat 1 | . . . . . . 1 . . . . Locate Traps 2 | . . . . . . 2 . . . . Disarm Traps 2 | . . . . . . 2 . . . . Reprogram Traps 2 | . . . . . . 2 . . . . Surveillance Status 1 | . . . . . . 1 . . . . Hauler Manifests 1 | . . . . . . 1 . . . . Proto ID Catalog 1 | . . . 1 . . . . . . . Release Object 1 | . . . 1 . . . . . . . Fabricator Hacks 8 | . . . . . . 8 . . . . Network Status 1 | . . . . . . 1 . . . . Load Schematic 4 | . . . . . . 4 . . . . Build 3 | . . . . . . 3 . . . . Repair Station Hacks 8 | . . . . . . 8 . . . . Scan Component 4 | . . . . . . 4 . . . . Repair 4 | . . . . . . 4 . . . . Recycling Unit Hacks 11 | . 2 . . 5 . 4 . . . . Retrieve Components 11 | . 2 . . 5 . 4 . . . . Scanalyzer 15 | . . . . . . 15 . . . . Insert Component 8 | . . . . . . 8 . . . . Analyze 7 | . . . . . . 7 . . . . Garrison Access Hacks 2 | . . . . . . 2 . . . . Seal Access 2 | . . . . . . 2 . . . . Unauthorized Hacks 28 | . 6 . . 8 . 14 . . . . Terminals 24 | . 6 . . 5 . 13 . . . . Assimilate 3 | . . . . . . 3 . . . . Botnet 21 | . 6 . . 5 . 10 . . . . Fabricators . | . . . . . . . . . . . Repair Stations . | . . . . . . . . . . . Recycling Units 4 | . . . . 3 . 1 . . . . Reject 4 | . . . . 3 . 1 . . . . Scanalyzers . | . . . . . . . . . . . Garrison Access . | . . . . . . . . . . . Data Cores Recovered 1 | . . . . . . 1 . . . . Used 1 | . . . . . . 1 . . . . Hacking Detections 29 | . 3 . . 6 . 20 . . . . Full Trace Events 9 | . . . . 1 . 8 . . . . Feedback Events . | . . . . . . . . . . . Feedback Blocked 2 | . . . . . . 2 . . . . Robot Schematics Acquired 4 | . . . . . . 1 . . 3 . Robots Built . | . . . . . . . . . . . Authchips . | . . . . . . . . . . . Time . | . . . . . . . . . . . Total Robot Build Rating . | . . . . . . . . . . . Part Schematics Acquired 32 | . . . . 2 . 12 . . 16 2 Parts Built 5 | . . . . . . 5 . . . . Authchips . | . . . . . . . . . . . Time 136 | . . . . . . 136 . . . . Total Part Build Rating 26 | . . . . . . 26 . . . . Part Studies Acquired . | . . . . . . . . . . . Parts Repaired 4 | . . . . . . 4 . . . . Time 125 | . . . . . . 125 . . . . Parts Recycled . | . . . . . . . . . . . Recycled Matter . | . . . . . . . . . . . Retrieved Matter . | . . . . . . . . . . . Retrieved Components 49 | . 7 . . 13 . 29 . . . . Parts Scanalyzed 6 | . . . . . . 6 . . . . Part Schematics Acquired 6 | . . . . . . 6 . . . . Parts Damaged 2 | . . . . . . 2 . . . . Bothacking | -11 -10 -10 -10 -8 -8 -6 -6 -6 -6 -6 ------------ Run | Yrd Mat Min Sub Rec Scr Fac Low Low Zio Dee Used RIF Installer . | . . . . . . . . . . . Robots Hacked . | . . . . . . . . . . . Non-combat . | . . . . . . . . . . . Combat . | . . . . . . . . . . . Robot Hacks Applied . | . . . . . . . . . . . Relay Couplers Released 6 | . . . . . . 6 . . . . Programmers 6 | . . . . . . 6 . . . . Fabnet Peak Effective % . | . . . . . . . . . . . Robots Rewired 10 | . . . . 8 . . 2 . . . Allies Hacked . | . . . . . . . . . . . Hacks Repelled . | . . . . . . . . . . . Allies | -11 -10 -10 -10 -8 -8 -6 -6 -6 -6 -6 -------- Run | Yrd Mat Min Sub Rec Scr Fac Low Low Zio Dee Total Allies 21 | . . . 1 8 . 1 2 5 4 . Largest Group 8 | . . . 1 8 7 7 2 4 8 8 Highest-Rated Group 470 | . . . 19 131 126 126 58 324 470 470 Highest-Rated Ally 81 | . . . 19 27 27 27 29 81 81 81 Total Orders . | . . . . . . . . . . . Ally Attacks 103 | . . . . 22 . 1 8 18 . 54 Total Damage 1652 | . . . . 351 . 32 111 955 . 203 Kills 14 | . . . . 3 . . . 7 . 4 Allies Corrupted . | . . . . . . . . . . . Allies Melted . | . . . . . . . . . . . Intel | -11 -10 -10 -10 -8 -8 -6 -6 -6 -6 -6 ------- Run | Yrd Mat Min Sub Rec Scr Fac Low Low Zio Dee Active Infowar (turns) 21928 | . . . 1591 3115 1854 3127 2675 2016 2797 4753 Sensors 559 | . . . 559 . . . . . . . IFF 10781 | . . . . . . 1086 2675 2016 2797 2207 Terrain 3460 | . . . . . . 913 . . . 2547 Structural 8468 | . . . 1589 3115 1854 1910 . . . . Robot Analysis Total . | . . . . . . . . . . . Derelict Logs Recovered 7 | . . 3 1 . . . 2 1 . . Drone Launches . | . . . . . . . . . . . Drone Recoveries . | . . . . . . . . . . . Exploration | -11 -10 -10 -10 -8 -8 -6 -6 -6 -6 -6 ------------- Run | Yrd Mat Min Sub Rec Scr Fac Low Low Zio Dee Turns Passed 36148 | 131 1181 1412 7347 3115 1854 8055 2675 2016 2797 5565 Spaces Moved 14992 | 64 600 832 3025 793 747 3367 1466 943 1353 1802 Core 60 | 21 . . . 32 4 . . . . 3 Treads 13475 | 43 600 832 3025 761 738 3367 1466 943 1353 347 Legs . | . . . . . . . . . . . Wheels 5 | . . . . . 5 . . . . . Hover 1452 | . . . . . . . . . . 1452 Flight . | . . . . . . . . . . . Fastest Speed 50 | 50 160 160 160 237 130 158 160 160 160 94 Average Speed 200 | 142 161 160 222 368 239 193 166 203 203 146 Slowest Speed 1200 | 200 240 160 360 900 900 240 240 240 240 1200 Overloaded Moves . | . . . . . . . . . . . Propulsion Burnouts . | . . . . . . . . . . . Robots Hopped . | . . . . . . . . . . . Potential Cave-ins . | . . . . . . . . . . . Cave-ins Triggered . | . . . . . . . . . . . Exploration Rate (%) 81 | 5 86 91 98 99 55 80 99 98 91 89 Regions Visited 10 Branch Regions 8 Pre-discovered Areas 1 | . . . . . . . . . 1 . Known Exits Taken 10 | 1 1 1 1 1 1 1 1 1 1 . Unknown Exits Taken . | . . . . . . . . . . . Scrap Searched 18 | . . 1 3 . 5 . 2 3 4 . Spaces Dug 50 | . . 3 1 . . 18 . . . 28 Terrain Destroyed 190 | . . 3 1 . . 139 7 4 . 36 Melee 1 | . . . 1 . . . . . . . Projectile 112 | . . 3 . . . 62 7 4 . 36 AOE 77 | . . . . . . 77 . . . . Terrain Rammed . | . . . . . . . . . . . Walls Destroyed . | . . . . . . . . . . . Machines Disabled . | . . . . . . . . . . . Actions | -11 -10 -10 -10 -8 -8 -6 -6 -6 -6 -6 --------- Run | Yrd Mat Min Sub Rec Scr Fac Low Low Zio Dee Total 20083 | 88 741 872 3467 981 813 4478 1644 1019 1398 4582 Wait 3976 | . 51 14 338 121 42 635 125 56 32 2562 Move 14982 | 63 599 831 3024 792 746 3366 1465 942 1352 1802 Hop . | . . . . . . . . . . . Pick Up 107 | 8 17 . 7 21 6 34 . 1 2 11 Fast Attach 80 | 1 4 . . 1 2 28 3 2 4 35 Attach 25 | 7 2 . 4 1 2 5 . . . 4 Detach 7 | 1 2 . . . 1 2 . . . 1 Swap 117 | . 8 3 19 1 6 46 2 2 2 28 Drop 172 | . 12 1 10 7 8 67 2 4 5 56 Fire 556 | 8 46 15 64 6 . 295 26 12 1 83 Melee 6 | . . . 1 5 . . . . . . Ram . | . . . . . . . . . . . Kick . | . . . . . . . . . . . Crush 8 | . . 8 . . . . . . . . Escape Stasis . | . . . . . . . . . . . Rewire 47 | . . . . 26 . . 21 . . . Trap . | . . . . . . . . . . . Miscellaneous . | . . . . . . . . . . . Route ------- -11/Scrapyard -10/Materials (discovered 4 exits: *Mat x3 / *Min) -10/Mines (discovered 2 exits: *Mat / *Sub) -10/Subcaves (discovered 3 exits: *Mat x2 / *Rec) -8/Recycling (discovered 2 exits: *Fac / *Scr) -8/Scraptown -6/Factory (discovered 5 exits: *Fac x4 / *Low) -6/Lower Caves -6/Lower Caves (discovered 2 exits: *Fac / *Zio) -6/Zion (discovered 2 exits: *Dee / *Pro) -6/Deep Caves (discovered 1 exit: *Pro) History --------- Turn | Location | Event 4 | -11/Scrapyard | Identified exit to Materials 4 | -11/Scrapyard | Discovered exit to Materials (range 16) 132 | -11/Scrapyard | Entered Materials 132 | -10/Materials | Evolved 1 slot: Utility x1 307 | -10/Materials | Build established: Hacker-Mutant 432 | -10/Materials | Identified exit to Materials 432 | -10/Materials | Discovered exit to Materials (range 13) 781 | -10/Materials | Discovered exit to Materials (range 10) 1015 | -10/Materials | Discovered exit to Materials (range 9) 1238 | -10/Materials | Identified exit to Mines 1238 | -10/Materials | Discovered exit to Mines (range 12) 1313 | -10/Materials | Entered Mines 1325 | -10/Mines | Met a Derelict bent on vengeance 1521 | -10/Mines | Found a Scrap Suit stashed away for nefarious purposes 1912 | -10/Mines | Learned Materials terminal intel 1919 | -10/Mines | Discovered exit to Materials (range 9) 1920 | -10/Mines | Learned 2 Materials zone layouts 2207 | -10/Mines | Learned location of 1 exit from Materials 2271 | -10/Mines | Identified exit to Subcaves 2271 | -10/Mines | Discovered exit to Subcaves (range 12) 2725 | -10/Mines | Entered Subcaves 2726 | -10/Subcaves | Approached by a straggling Scientist 2753 | -10/Subcaves | Identified exit to Materials 2753 | -10/Subcaves | Discovered exit to Materials (range 12) 3539 | -10/Subcaves | Shifting Twisted Machinery released Sub. Laser 3626 | -10/Subcaves | Identified exit to Recycling 3626 | -10/Subcaves | Discovered exit to Recycling (range 12) 4459 | -10/Subcaves | Learned 8 Materials zone layouts 6121 | -10/Subcaves | Core integrity fell below 50% 6364 | -10/Subcaves | Shifting Twisted Machinery released Mak. Light Armor Plating 6567 | -10/Subcaves | Visited 4L-MR0's lab 6917 | -10/Subcaves | Discovered exit to Materials (range 9) 7214 | -10/Subcaves | Core integrity fell below 20% 8473 | -10/Subcaves | Visited Clippyterm 8481 | -10/Subcaves | Learned Factory fabricator intel 9028 | -10/Subcaves | Visited triangular shrine 9039 | -10/Subcaves | Found Prototype Device 9040 | -10/Subcaves | Identified V3-11A's Pendant 9045 | -10/Subcaves | Befriended Subdweller 9524 | -10/Subcaves | Found SUBCON Basin 10072 | -10/Subcaves | Entered Recycling 10072 | -8/Recycling | Accompanied by 1 ally 10307 | -8/Recycling | Scanned before Scraplab entrance 10351 | -8/Recycling | Identified exit to Scraptown 10351 | -8/Recycling | Discovered exit to Scraptown (range 11) 10361 | -8/Recycling | Entered Scraplab 10992 | -8/Recycling | Identified exit to Factory 10992 | -8/Recycling | Discovered exit to Factory (range 14) 11380 | -8/Recycling | Build established: Commander-Mutant 13187 | -8/Recycling | Entered Scraptown 13187 | -8/Scraptown | Accompanied by 7 allies 13414 | -8/Scraptown | Delivered V3-11A's Pendant to T0-NE2 in exchange for information 13769 | -8/Scraptown | Discovered exit to Factory (range 13) 13921 | -8/Scraptown | Visited Red Mages 14037 | -8/Scraptown | Visited Spacefarers 14089 | -8/Scraptown | Visited Bundlers 14292 | -8/Scraptown | Visited The Evicted 14337 | -8/Scraptown | Visited Cave Peace 15041 | -8/Scraptown | Entered Factory 15041 | -6/Factory | Accompanied by 7 allies 15041 | -6/Factory | Evolved 8 slots: Power x1, Propulsion x2, Utility x5 15042 | -6/Factory | Loaded intel: 6 fabricator locations 15201 | -6/Factory | Lost 4 allies 15491 | -6/Factory | Build established: Hacker-Mutant 17189 | -6/Factory | Spotted B-75 Beast 17223 | -6/Factory | Destroyed B-75 Beast 17289 | -6/Factory | Identified exit to Factory 17289 | -6/Factory | Discovered exit to Factory (range 5) 17752 | -6/Factory | Discovered exit to Factory (range 14) 18939 | -6/Factory | Repaired Lyr. Medium Armor Plating 19382 | -6/Factory | Fabricated Multitool (x1) 20132 | -6/Factory | Identified exit to Lower Caves 20132 | -6/Factory | Discovered exit to Lower Caves (range 16) 20345 | -6/Factory | Discovered exit to Factory (range 12) 20458 | -6/Factory | Repaired Imp. Medium Treads 20484 | -6/Factory | Repaired Imp. Medium Treads 20883 | -6/Factory | Fabricated Graphene Brace (x2) 21882 | -6/Factory | P-60 Hacker assimilated allied Administrator 5a 22008 | -6/Factory | Fabricated Imp. System Restoration Module (x2) 22185 | -6/Factory | Discovered exit to Factory (range 8) 22369 | -6/Factory | Repaired Imp. Medium Treads 23096 | -6/Factory | Entered Lower Caves 23245 | -6/Lower Caves | Identified exit to Lower Caves 23284 | -6/Lower Caves | Learned location of 1 exit from Factory 23720 | -6/Lower Caves | Encountered a Warlord checkpoint 23906 | -6/Lower Caves | Attracted the attention of an 0b10 outpost 23981 | -6/Lower Caves | Destroyed 7 combat bots 24183 | -6/Lower Caves | Ambushed by research squad 25771 | -6/Lower Caves | Entered another Lower Caves area 25958 | -6/Lower Caves | Prototype Device suddenly appears! 25973 | -6/Lower Caves | Found Prototype Device 25973 | -6/Lower Caves | Identified Amulet of Y3-NDR 25987 | -6/Lower Caves | Joined by bewildered Wizard 25988 | -6/Lower Caves | Joined by bewildered Wizard 25989 | -6/Lower Caves | Joined by bewildered Wizard 25998 | -6/Lower Caves | Encountered a Warlord checkpoint 26038 | -6/Lower Caves | Joined by bewildered Wizard 26198 | -6/Lower Caves | Discovered exit to Factory (range 9) 26592 | -6/Lower Caves | Joined by bewildered Wizard 27410 | -6/Lower Caves | Learned 4 Factory zone layouts 27486 | -6/Lower Caves | Identified exit to Zion 27486 | -6/Lower Caves | Discovered exit to Zion (range 9) 27787 | -6/Lower Caves | Entered Zion 27787 | -6/Zion | Accompanied by 4 allies 27887 | -6/Zion | Given the Hacking Drone Bay 27899 | -6/Zion | Identified exit to Proximity Caves 27899 | -6/Zion | Discovered exit to Proximity Caves (range 16) 28343 | -6/Zion | Learned location of Quarantine (-2) 28790 | -6/Zion | Met Imprinter 28828 | -6/Zion | Imprinted 28830 | -6/Zion | Declared Zion's savior 29337 | -6/Zion | Acquired unknown access codes intercepted by a Zionite 30530 | -6/Zion | Opened final containment barrier to the Deep Caves 30558 | -6/Zion | Identified exit to Deep Caves 30558 | -6/Zion | Discovered exit to Deep Caves (range 3) 30558 | -6/Zion | Saw the warning signs outside the Deep Caves entrance 30584 | -6/Zion | Entered Deep Caves 30584 | -6/Deep Caves | Accompanied by 8 allies 30628 | -6/Deep Caves | Found Surveybot 24 Chip 30631 | -6/Deep Caves | Found Surveybot 24 Scanner 30986 | -6/Deep Caves | Attacked by Z-Imprinter 31000 | -6/Deep Caves | Core integrity fell below 50% 31023 | -6/Deep Caves | Destroyed Z-Imprinter 31052 | -6/Deep Caves | Lost 4 allies 31062 | -6/Deep Caves | Lost 3 parts (2n1w) 31121 | -6/Deep Caves | Found Prototype Device 31121 | -6/Deep Caves | Identified Zio. Metafield Generator 31389 | -6/Deep Caves | Build established: Scavenger-Mutant 31759 | -6/Deep Caves | Lost 4 parts (2n1u1w) 32011 | -6/Deep Caves | Build established: Hacker-Mutant 32323 | -6/Deep Caves | Build established: Scavenger-Mutant 32357 | -6/Deep Caves | Identified exit to Proximity Caves 32357 | -6/Deep Caves | Discovered exit to Proximity Caves (range 6) 33105 | -6/Deep Caves | Found Prototype Protection 33106 | -6/Deep Caves | Identified Zio. Weapon Casing 36058 | -6/Deep Caves | Spotted AG-90434 36062 | -6/Deep Caves | Found Prototype Device 36069 | -6/Deep Caves | Core integrity fell below 20% 36149 | -6/Deep Caves | Destroyed by AG-90434 with Assembled Focal Cannon Last Messages --------------- 36017_ I9-B4Y(l) destroyed. 36020_ 7L-8L2(s) suffers critical hit (Intensify). 36020_ Destroyed Lgt. Nuclear Core. 36020_ 7L-8L2(s) destroyed. 36058_ Zio. Glidesys I destroyed. 36059_ AG-90434: "DSI9AT1D G8OHIBQ29FWG 26R186 QD12WHW8W33 TDK1 81FTS" 36062_ Tech Extrapolator generates new schematic "Mak. Coolant Network". Influences: Imp. Heat Sink, Exp. Heat Sink, Heat Sink. 36062_ Dropped IFF Parser. 36062_ Acquired Prototype Device. 36068_ Zio. Glidesys I destroyed. 36106_ Zio. Phaser-S destroyed. 36106_ Zio. Glidesys I destroyed. 36125_ Zio. Laser-M destroyed. 36129_ Zio. Phaser-S destroyed. 36129_ Exp. Reaction Control System destroyed. 36136_ Zio. Glidesys I destroyed. Map ----- +----------------------------------------------------+ | # #?########?#?#### ####??## ### | | # ## #?######### ####?#??###?## | | ## #####?#### #####?####### | | ## ########?# ##########?# | | ## ########## ### ###???# | | # ##### ## # ##### ##??# | | " " ########## ## ##?###### | | ######## #######?######## #???????# | | ######### ################# ##??????? | | ########### ###### ####### ####????? | | ! ######## ##### ###### ##???? | | ##"####### #### ##### #???? | | ### ### # ## #### #???? | | = !% """ """"" #### ##???# | | " ### ### ##???# | | ########## ## ##### | | #######?## | | ######## | | = ######### ### | | | ######"# G ###?## | | = " " ##" ##????# | | ###### #### #?????# | | ####### ## ;##### ##?????# | | |% % ####?### ## ;####### # ##??????## | | ######## ## ######## ####????????? | | #####?## ##@ ;#?#?#?# #???????????? | | ##?#### # ######## ##?????###??? | | | #### ### ### #?????# #### | | // | "" ####### | | = = | = ## ## | | % "## ### # | | = "### ##### ############# | | ==% = ##??###### #???????????## | | ! ###?####??# #????????????# | | % ##?####????# #???????????# | | #########?##??????# #??????????# | | ###?#####???????### ##?????????# | | ##?#??????????#### #????????# | | # # ??????????????# #????????## | | ?#### ## ## #??????????????#> # ###?????????### | | ????# ?# ?##???????????????#######??????????????## | | ????#????????????????????????????????????????????# | | ?????????????????????????????????????????????????? | | | | | | | | | | | | | | | +----------------------------------------------------+ Best States ------------- Heat Dissipation 115 Energy Generation 49 Energy Capacity 410 Matter Stores 300 Matter Capacity 300 Sight Range 16 Robot Scan Range 14 Terrain Scan Range 24 Terrain Scan Density 10 Armor Coverage 675 Resistance: KI 35 Resistance: TH 35 Resistance: EX 35 Resistance: EM 60 Resistance: I 35 Resistance: S 35 Resistance: P 35 Evasion (%) 41 Recoil Reduction 4 Offensive Hacking 20 Defensive Hacking 22 Authchip Count 3 Item Schematics ----------------- Triangulator | -8/Recycling | Hacked Coil Gun | -8/Recycling | Hacked Graphene Brace | -6/Factory | Hacked Imp. System Shield | -6/Factory | Scanalyzed Adv. Terrain Scanner | -6/Factory | Scanalyzed Carbide Saw | -6/Factory | Hacked Adv. Cooling System | -6/Factory | Hacked Imp. System Restoration Module | -6/Factory | Scanalyzed Cld. Plasma Cannon | -6/Factory | Scanalyzed Multitool | -6/Factory | Scanalyzed Corruption Screen | -6/Factory | Scanalyzed Lrn. Tractor Beam | -6/Factory | Hacked EM Shield | -6/Factory | Hacked Phase Gun | -6/Factory | Hacked Imp. KE Penetrator | -6/Zion | Archive Hvy. Phase Cannon | -6/Zion | Archive Adv. Signal Interpreter | -6/Zion | Archive Imp. Remote Datajack | -6/Zion | Archive Magnetic Acceleration Cannon | -6/Zion | Archive KE Penetrator | -6/Zion | Archive Focal Shield | -6/Zion | Archive Imp. Plasma Cutter | -6/Zion | Archive Imp. Proton Missile Launcher | -6/Zion | Archive Adv. Coolant Injector | -6/Zion | Archive Hardcell Cannon | -6/Zion | Archive Fusion Compressor | -6/Zion | Archive Adv. System Restoration Module | -6/Zion | Archive Lyr. Medium Armor Plating | -6/Zion | Archive Imp. Transmission Jammer | -6/Zion | Archive Cloaking Device | -6/Zion | Archive Mak. Hacking Suite | -6/Deep Caves | Extrapolated Mak. Coolant Network | -6/Deep Caves | Extrapolated Robot Schematics ------------------ L-41 Fighter | -6/Factory | Hacked T-07 Excavator | -6/Zion | Archive R-10 Processor | -6/Zion | Archive H-55 Commando | -6/Zion | Archive Fabricated ------------ Multitool | x1 | -6/Factory Graphene Brace | x2 | -6/Factory Imp. System Restoration Module | x2 | -6/Factory Repaired ---------- Lyr. Medium Armor Plating | 58% | -6/Factory Imp. Medium Treads | 18% | -6/Factory Imp. Medium Treads | 23% | -6/Factory Imp. Medium Treads | 4% | -6/Factory Studied --------- None Alien Tech Used ----------------- None Achievements -------------- Cannon Specialist Challenges ------------ None Game ------ Seed HardenedElectronStorm Manual? 0 Play Time 02:04:23 Cumulative 273.3 hours Start 2026.01.12 @ 09:51:52 End 2026.01.12 @ 11:59:24 Sessions 1 Manual Loads 0 Difficulty Explorer Special Mode None Game No. 426 Rogue 0 Adventurer 0 Explorer 426 Win Type - Total 0 Types 0/0/0/0/0/0/0/0/0/0 Lore% 73 Gallery% 69 Achievement% 54 Wizard Run 0 Options --------- Layout 1 ASCII 0 Keyboard 0 Movement Mouse Keybinds 1 Fullscreen 1 Font 24/Smallcaps Map View 50x35 Zoom Use 0% Tactical HUD 1 Map Filters NONE Filters NONE Steam 1 RUN: d9f29e83-1423-424a-80c5-b5ecdcaddde3